bitfinex-derivatives/quotes_BTCF0:USTF0_20250411
["timestamp","ask_amount","ask_price","bid_price","bid_amount"]
[1744406304358,0.005,84044.0,84043.0,0.13663732]
[1744406304561,0.005,84044.0,84043.0,0.20023732]
[1744406305267,0.1240305,84044.0,84043.0,0.16923732]
[1744406305464,0.1553305,84044.0,84043.0,0.01760542]
[1744406305768,0.1869305,84044.0,84043.0,0.13663732]
[1744406307172,0.2178305,84044.0,84043.0,0.13663732]
[1744406310059,0.2178305,84044.0,84043.0,0.13556782]
[1744406310863,0.0988,84044.0,84043.0,0.13556782]
[1744406311068,0.0988,84044.0,84043.0,0.16766782]
[1744406311468,0.2178305,84044.0,84043.0,0.16766782]
[1744406311969,0.2178305,84044.0,84043.0,0.16795302]
[1744406317266,0.5786305,84044.0,84043.0,0.16795302]
[1744406317674,0.5786305,84044.0,84043.0,0.16773376]
[1744406319282,1.6109145,84044.0,84043.0,0.16773376]
[1744406320981,1.6109145,84044.0,84043.0,0.04870186]
[1744406321481,1.6109145,84044.0,84043.0,0.0321]
[1744406321876,1.6109145,84044.0,84043.0,0.1511319]
[1744406324581,1.2501145,84044.0,84043.0,0.1511319]
[1744406324783,1.6109145,84044.0,84043.0,0.1511319]
[1744406326984,1.6109145,84044.0,84031.0,0.39264522]
[1744406326985,0.1190475,84032.0,84031.0,0.39264522]
[1744406327487,0.1506475,84032.0,84031.0,0.39264522]
[1744406328786,0.1506475,84032.0,84031.0,0.42304522]
[1744406329588,0.1506475,84032.0,84031.0,0.43193079]
[1744406329896,0.1506475,84032.0,84031.0,0.21785747]
[1744406330883,0.1190475,84032.0,84031.0,0.21785747]
[1744406331091,0.1190475,84032.0,84031.0,0.24825747]
[1744406334283,0.3608,84034.0,84033.0,0.119046]
[1744406334693,0.3608,84034.0,84033.0,0.182546]
[1744406334894,0.36084,84034.0,84033.0,0.182546]
[1744406336791,4e-05,84034.0,84033.0,0.182546]
[1744406337193,0.14267321,84036.0,84035.0,0.1190432]
[1744406337693,0.1190362,84040.0,84039.0,0.0595187]
[1744406338298,0.1190362,84040.0,84039.0,0.1209187]
[1744406341798,0.11908961,84041.0,84040.0,0.1190361]
[1744406341992,0.11908961,84041.0,84040.0,0.1807361]
[1744406343891,0.15178961,84041.0,84040.0,0.1807361]
[1744406345000,0.21558961,84041.0,84040.0,0.1807361]
[1744406349111,0.35826381,84041.0,84040.0,0.1807361]
[1744406349298,0.32526381,84041.0,84040.0,0.1807361]
[1744406351608,0.18258961,84041.0,84040.0,0.1807361]
[1744406353698,0.15178961,84041.0,84040.0,0.1807361]
[1744406359908,0.11908961,84041.0,84040.0,0.1807361]
[1744406360207,0.11908961,84041.0,84040.0,0.2109361]
[1744406362012,0.11908961,84041.0,84040.0,0.1807361]
[1744406364317,5.401e-05,84041.0,84040.0,0.1807361]
[1744406364707,0.1190347,84041.0,84040.0,0.1807361]
[1744406364907,0.1190747,84041.0,84040.0,0.19754748]
[1744406370312,0.1190747,84041.0,84040.0,0.27495667]
[1744406370718,0.1190747,84041.0,84040.0,0.19679667]
[1744406370916,0.1190747,84041.0,84040.0,0.2588961]
[1744406371512,0.1190747,84041.0,84040.0,0.1807361]
[1744406372017,0.1190747,84041.0,84040.0,0.19692408]
[1744406372318,1.1846587,84041.0,84040.0,0.27508408]
[1744406373912,1.1846587,84041.0,84040.0,0.19692408]
[1744406374113,1.1846587,84041.0,84040.0,0.27504873]
[1744406374811,1.1846587,84041.0,84040.0,0.19688873]
[1744406375010,1.1846587,84041.0,84040.0,0.27504873]
[1744406376009,1.1846587,84041.0,84040.0,0.27511476]
[1744406376514,1.1846587,84041.0,84040.0,0.19695476]
[1744406376819,1.1846587,84041.0,84040.0,0.27511476]
[1744406377015,1.1846587,84041.0,84040.0,0.19695476]
[1744406377215,1.1846587,84041.0,84040.0,0.27511476]
[1744406377521,1.1846587,84041.0,84040.0,0.19695476]
[1744406377717,1.1846587,84041.0,84040.0,0.27511476]
[1744406377916,1.1846587,84041.0,84040.0,0.19697257]
[1744406378121,1.1846587,84041.0,84040.0,0.27513257]
[1744406378522,1.1846587,84041.0,84040.0,0.19697257]
[1744406378819,1.1846587,84041.0,84040.0,0.27513257]
[1744406379222,1.1513587,84041.0,84040.0,0.27513257]
[1744406380523,1.032324,84041.0,84040.0,0.27513257]
[1744406380723,1.032284,84041.0,84040.0,0.27513257]
[1744406380923,1.032324,84041.0,84040.0,0.27513257]
[1744406382230,1.1513587,84041.0,84040.0,0.27513257]
[1744406383925,1.1513587,84041.0,84040.0,0.19697257]
[1744406384126,1.1513587,84041.0,84040.0,0.27577257]
[1744406384528,1.1513587,84041.0,84040.0,0.19697257]
[1744406384729,1.1513587,84041.0,84040.0,0.27577257]
[1744406386623,1.1513587,84041.0,84040.0,0.27572142]
[1744406388722,1.1513587,84041.0,84040.0,0.19692142]
[1744406388923,1.1813587,84041.0,84040.0,0.01618532]
[1744406389125,1.2121587,84041.0,84040.0,0.01618532]
[1744406391135,1.27003399,84041.0,84040.0,0.01618532]
[1744406392445,1.27003399,84041.0,84040.0,0.13522142]
[1744406393437,1.27003399,84041.0,84040.0,0.13510122]
[1744406394031,0.23774999,84041.0,84040.0,0.13510122]
[1744406394236,0.05787529,84041.0,84040.0,0.13510122]
[1744406394535,0.05791529,84041.0,84040.0,0.19870122]
[1744406394736,0.05787529,84041.0,84040.0,0.19870122]
[1744406394936,0.23625314,84041.0,84040.0,0.1826361]
[1744406397237,0.23625314,84041.0,84040.0,0.5434361]
[1744406398741,0.23621314,84041.0,84040.0,0.5434361]
[1744406399034,4e-05,84041.0,84040.0,0.5434361]
[1744406399240,0.4888479,84040.0,84039.0,0.27372164]
[1744406399640,0.4888479,84040.0,84039.0,0.39275914]
[1744406402437,0.4888479,84040.0,84039.0,0.45485914]
[1744406403442,0.4888479,84040.0,84039.0,0.2406562]
[1744406403843,0.65643795,84066.0,84041.0,0.1190345]
[1744406404030,1e-08,84058.0,84057.0,0.119012]
[1744406404349,1e-08,84058.0,84057.0,0.197772]
[1744406404836,1e-08,84058.0,84057.0,0.261372]
[1744406405041,1e-08,84058.0,84057.0,0.182612]
[1744406405239,2e-08,84063.0,84062.0,0.119005]
[1744406405437,2e-08,84063.0,84062.0,0.479805]
[1744406405942,4.002e-05,84063.0,84062.0,0.479805]
[1744406406140,4.002e-05,84063.0,84062.0,0.543405]
[1744406407238,4.002e-05,84063.0,84062.0,0.55540007]
[1744406410139,0.17851624,84066.0,84065.0,0.1190007]
[1744406410344,4e-08,84070.0,84069.0,0.1189951]
[1744406410543,4e-08,84070.0,84069.0,0.5585551]
[1744406411234,4e-08,84070.0,84069.0,0.6217551]
[1744406417950,4e-08,84070.0,84069.0,0.62175482]
[1744406418856,4e-08,84070.0,84069.0,0.58951482]
[1744406420055,4e-08,84070.0,84069.0,0.22871482]
[1744406420447,4e-08,84070.0,84069.0,0.95031482]
[1744406423251,4e-08,84070.0,84069.0,0.87219482]
[1744406423452,4e-08,84070.0,84069.0,0.95031482]
[1744406427769,5.401e-05,84076.0,84071.0,0.059496]
[1744406427972,5.401e-05,84076.0,84075.0,0.1189866]
[1744406428560,5.401e-05,84076.0,84075.0,0.1827866]
[1744406428766,5.401e-05,84076.0,84075.0,0.19183697]
[1744406430370,5.401e-05,84076.0,84075.0,0.16083697]
[1744406431361,0.06275401,84076.0,84075.0,0.16083697]
[1744406432360,0.18173921,84076.0,84075.0,0.12803697]
[1744406437062,0.18173921,84076.0,84075.0,0.16043697]
[1744406438075,0.18173921,84076.0,84075.0,0.52123697]
[1744406442276,0.1816852,84076.0,84075.0,0.52123697]
[1744406450583,0.0594898,84080.0,84075.0,0.52123697]
[1744406450584,0.29726592,84087.0,84081.0,0.0594888]
[1744406450783,0.35675182,84087.0,84086.0,0.118971]
[1744406451081,0.41623812,84087.0,84086.0,0.118971]
[1744406451877,0.41623812,84087.0,84086.0,0.151671]
[1744406452083,0.2379436,84087.0,84086.0,0.151671]
[1744406453982,0.2988436,84087.0,84086.0,0.151671]
[1744406454182,0.2988436,84087.0,84086.0,0.16763864]
[1744406455579,0.2988436,84087.0,84086.0,0.16763828]
[1744406457086,0.2988436,84087.0,84086.0,0.19833828]
[1744406457484,0.2988436,84087.0,84086.0,0.19833993]
[1744406459091,0.2988436,84087.0,84086.0,0.07936893]
[1744406459392,0.2988436,84087.0,84086.0,0.07937851]
[1744406460493,0.2379436,84087.0,84086.0,0.19834951]
[1744406462495,0.2379436,84087.0,84086.0,0.19864395]
[1744406463093,0.2379436,84087.0,84086.0,0.19864369]
[1744406463391,0.17829001,84091.0,84086.0,0.07967269]
[1744406463695,0.35674271,84091.0,84090.0,0.4797653]
[1744406463988,0.35674271,84091.0,84090.0,0.49603799]
[1744406464191,0.35674271,84091.0,84090.0,0.55753799]
[1744406464587,0.2379364,84091.0,84090.0,0.43857269]
[1744406464889,0.2379364,84091.0,84090.0,0.55753799]
[1744406466381,0.2692364,84091.0,84090.0,0.55753799]
[1744406467590,0.2692364,84091.0,84090.0,0.40757269]
[1744406467783,0.3332364,84091.0,84090.0,0.40757269]
[1744406468288,0.3332364,84091.0,84090.0,0.40770924]
[1744406469896,0.3332364,84091.0,84090.0,0.04690924]
[1744406470086,0.3332364,84091.0,84090.0,0.04723686]
[1744406472198,5.401e-05,84093.0,84092.0,0.1189625]
[1744406472393,0.14260128,84094.0,84093.0,0.1189611]
[1744406472595,0.1,84100.0,84097.0,0.0594777]
[1744406472794,0.34504666,84133.0,84108.0,0.1189399]
[1744406472989,0.0594639,84117.0,84108.0,0.57455676]
[1744406473296,0.1189292,84116.0,84108.0,0.57455676]
[1744406473490,0.21423539,84109.0,84108.0,0.57455676]
[1744406473692,0.21419539,84109.0,84108.0,0.57455676]
[1744406473995,0.21419539,84109.0,84108.0,0.49636586]
[1744406474199,0.21423539,84109.0,84108.0,0.49636586]
[1744406474400,0.21423539,84109.0,84108.0,0.57444586]
[1744406474600,0.005,84122.0,84110.0,0.0594681]
[1744406474894,0.28559386,84133.0,84132.0,0.118906]
[1744406475098,0.28559386,84133.0,84132.0,0.57441196]
[1744406475297,0.40449836,84133.0,84132.0,0.57437196]
[1744406475697,0.40449836,84133.0,84132.0,0.49687346]
[1744406475997,0.40449836,84133.0,84132.0,0.60731346]
[1744406476296,5.401e-05,84143.0,84142.0,0.1188918]
[1744406476490,0.31655409,84149.0,84143.0,0.0594452]
[1744406476688,0.1499488,84173.0,84148.0,0.3608]
[1744406476895,0.19262492,84173.0,84172.0,0.4796494]
[1744406477094,0.005,84174.0,84173.0,0.118848]
[1744406477790,0.005,84174.0,84173.0,0.13528836]
[1744406478192,0.0594149,84186.0,84172.0,0.3608]
[1744406478193,0.01210506,84207.0,84187.0,0.1188283]
[1744406478397,7.291e-05,84189.0,84187.0,0.4796283]
[1744406479094,0.58291692,84188.0,84187.0,0.4796283]
[1744406479996,0.1188269,84188.0,84187.0,0.5413283]
[1744406480190,7.291e-05,84189.0,84188.0,0.1188269]
[1744406480387,7.291e-05,84189.0,84188.0,0.1805269]
[1744406480695,0.0594117,84191.0,84190.0,0.118824]
[1744406480897,0.0594101,84193.0,84192.0,0.1782284]
[1744406481100,0.0594101,84193.0,84192.0,0.2396284]
[1744406481399,0.1782223,84198.0,84197.0,0.0594065]
[1744406481599,0.1782223,84198.0,84197.0,0.1208065]
[1744406481800,0.33974722,84198.0,84197.0,0.1208065]
[1744406482395,0.33974722,84198.0,84197.0,0.0614]
[1744406482704,0.33974722,84198.0,84197.0,0.0309]
[1744406482901,0.33978722,84198.0,84197.0,0.0309]
[1744406483203,0.017,84200.0,84197.0,0.2809]
[1744406483403,0.0593965,84212.0,84199.0,0.3608]
[1744406483607,0.118793,84212.0,84211.0,0.3608]
[1744406483901,0.1188099,84200.0,84199.0,0.3608]
[1744406484906,4e-05,84200.0,84199.0,0.4796113]
[1744406485103,0.0593968,84212.0,84199.0,0.3608]
[1744406485306,0.0314,84221.0,84220.0,0.1187817]
[1744406485803,0.03144,84221.0,84220.0,0.1187817]
[1744406486501,0.03144,84221.0,84220.0,0.1498817]
[1744406486704,0.1502203,84221.0,84220.0,0.1498817]
[1744406487002,0.1188203,84221.0,84220.0,0.1498817]
[1744406487506,4e-05,84221.0,84220.0,0.1498817]
[1744406487804,0.0897882,84224.0,84223.0,0.1187775]
[1744406487805,0.2085657,84224.0,84223.0,0.1187775]
[1744406488002,0.2085657,84224.0,84223.0,0.4795775]
[1744406488206,0.005,84226.0,84225.0,0.1187747]
[1744406488802,0.00504,84226.0,84225.0,0.1187747]
[1744406489097,0.1238133,84226.0,84225.0,0.1187747]
[1744406490614,0.0593845,84229.0,84225.0,0.1781614]
[1744406490908,0.0593852,84228.0,84227.0,0.1187718]
[1744406491109,0.0593733,84245.0,84223.0,0.37249814]
[1744406491302,0.1781379,84238.0,84237.0,0.0593773]
[1744406491814,0.1781779,84238.0,84237.0,0.0593773]
[1744406492700,0.1187592,84236.0,84235.0,0.5389394]
[1744406493105,0.3608,84267.0,84235.0,0.6108]
[1744406493310,0.10740791,84300.0,84266.0,0.3608]
[1744406493500,0.3608,84338.0,84303.0,0.1186648]
[1744406493805,0.3608,84338.0,84299.0,0.7216]
[1744406493806,0.118669,84300.0,84299.0,0.7216]
[1744406494205,0.0319,84303.0,84299.0,0.7216]
[1744406494413,0.118669,84300.0,84299.0,0.7216]
[1744406494607,0.0593286,84309.0,84299.0,0.7216]
[1744406494608,5.401e-05,84326.0,84299.0,0.73040506]
[1744406494904,0.0643135,84330.0,84320.0,0.0593204]
[1744406495210,0.0643135,84330.0,84319.0,0.7216]
[1744406495211,0.1186408,84320.0,84319.0,0.3608]
[1744406495395,0.13189992,84329.0,84319.0,0.7216]
[1744406495600,0.1186408,84320.0,84319.0,0.3608]
[1744406495808,0.1186408,84320.0,84319.0,0.73070267]
[1744406496003,0.38016564,84320.0,84319.0,0.6793304]
[1744406496198,0.00504,84330.0,84319.0,0.68842861]
[1744406496500,0.09999992,84329.0,84319.0,0.32762861]
[1744406496700,0.25122812,84329.0,84328.0,0.3608]
[1744406496899,0.31279312,84329.0,84328.0,0.3608]
[1744406497100,0.1186408,84320.0,84319.0,0.15700548]
[1744406497301,0.1186437,84318.0,84317.0,0.00017793]
[1744406497501,0.118676,84295.0,84294.0,0.3608]
[1744406497704,0.0593357,84299.0,84283.0,0.3608]
[1744406497905,0.0593381,84295.0,84294.0,0.3608]
[1744406498910,0.0593381,84295.0,84294.0,0.4794774]
[1744406499215,0.087,84296.0,84294.0,0.4794774]
[1744406499216,0.03684619,84296.0,84294.0,0.4794774]
[1744406499404,0.0593381,84295.0,84294.0,0.4794774]
[1744406500111,0.1186803,84292.0,84291.0,0.21348566]
[1744406500506,0.1186803,84292.0,84291.0,0.1186817]
[1744406501030,0.1186831,84290.0,84289.0,0.01374842]
[1744406501538,0.1186831,84290.0,84289.0,0.00474555]
[1744406502438,0.1186873,84287.0,84271.0,0.3608]
[1744406502726,0.1187197,84264.0,84262.0,0.4201606]
[1744406502929,0.1187197,84264.0,84263.0,0.12346811]
[1744406504551,0.1187197,84264.0,84263.0,0.00474701]
[1744406504937,0.1187197,84264.0,84263.0,0.01360839]
[1744406505239,0.1187197,84264.0,84263.0,0.00474701]
[1744406506630,0.118731,84256.0,84255.0,0.00017793]
[1744406509441,0.368731,84256.0,84255.0,0.00017793]
[1744406509627,0.1187563,84239.0,84238.0,0.1781301]
[1744406509927,0.1187563,84239.0,84238.0,0.0593781]
[1744406511020,0.1187563,84238.0,84237.0,0.21823414]
[1744406511423,0.1812563,84238.0,84237.0,0.21823414]
[1744406511607,0.1187648,84232.0,84231.0,0.28560393]
[1744406512221,0.1187761,84224.0,84215.0,0.3608]
[1744406512618,0.1187859,84217.0,84215.0,0.3608]
[1744406513118,0.1187859,84217.0,84203.0,0.3608]
[1744406513119,0.0593981,84210.0,84203.0,0.3608]
[1744406513422,0.1188071,84202.0,84201.0,0.9397915]
[1744406514211,0.1490071,84202.0,84201.0,0.9397915]
[1744406515014,0.1790071,84202.0,84201.0,0.9397915]
[1744406515418,0.1790071,84202.0,84201.0,0.7168658]
[1744406515616,0.1790071,84202.0,84170.0,0.0594259]
[1744406515617,0.05941,84193.0,84170.0,0.0594259]
[1744406515811,0.05941,84193.0,84165.0,0.075729]
[1744406515812,0.1188283,84187.0,84165.0,0.059429]
[1744406516015,0.3608,84187.0,84167.0,0.3608]
[1744406516235,0.1188551,84168.0,84167.0,0.3608]
[1744406517023,0.1807551,84168.0,84167.0,0.3608]
[1744406517421,0.1807551,84168.0,84167.0,0.4796565]
[1744406517827,0.1807551,84168.0,84167.0,0.3608]
[1744406518126,0.1807551,84168.0,84167.0,0.4796565]
[1744406518328,0.1807551,84168.0,84167.0,0.3608]
[1744406519413,0.0619,84168.0,84167.0,0.3608]
[1744406519613,0.03194,84168.0,84167.0,0.4796565]
[1744406519818,4e-05,84168.0,84167.0,0.74646224]
[1744406520225,0.00017815,84176.0,84175.0,0.1188452]
[1744406520522,0.031,84190.0,84189.0,0.1188255]
[1744406520718,0.149824,84190.0,84189.0,0.1188255]
[1744406521328,0.031,84190.0,84189.0,0.1188255]
[1744406521522,0.149824,84190.0,84189.0,0.1188255]
[1744406521720,0.031,84190.0,84189.0,0.1188255]
[1744406522428,0.149864,84190.0,84189.0,0.1351255]
[1744406522926,0.149864,84190.0,84189.0,0.1188255]
[1744406523614,0.149824,84190.0,84189.0,0.1188255]
[1744406523812,4e-05,84190.0,84189.0,0.1188255]
[1744406524023,0.00017815,84198.0,84197.0,0.1188142]
[1744406524227,0.00017815,84198.0,84197.0,0.4796142]
[1744406524560,0.00021815,84198.0,84197.0,0.4959142]
[1744406524747,0.00017815,84198.0,84197.0,0.4959142]
[1744406524942,0.00021815,84198.0,84197.0,0.4959142]
[1744406525641,0.11903085,84198.0,84197.0,0.4959142]
[1744406525945,0.00021815,84198.0,84197.0,0.50492194]
[1744406527226,0.00017815,84198.0,84197.0,0.50492194]
[1744406527424,0.00021815,84198.0,84197.0,0.50492194]
[1744406527637,0.11903085,84198.0,84197.0,0.50492194]
[1744406528329,0.00021815,84198.0,84197.0,0.50492194]
[1744406528731,0.11903085,84198.0,84197.0,0.50492194]
[1744406529232,0.00021815,84198.0,84197.0,0.52132186]
[1744406529726,0.00017815,84198.0,84197.0,0.50492194]
[1744406530327,0.00021815,84198.0,84197.0,0.50492194]
[1744406531523,0.00021815,84198.0,84197.0,0.52108454]
[1744406532434,0.00021815,84198.0,84197.0,0.38597034]
[1744406532435,0.11903085,84198.0,84197.0,0.38597034]
[1744406532735,0.11903085,84198.0,84197.0,0.14451403]
[1744406532929,0.11903085,84198.0,84197.0,0.02569983]
[1744406533126,0.15223085,84198.0,84197.0,0.02569983]
[1744406533520,0.15223085,84198.0,84197.0,0.00900774]
[1744406533725,0.1188142,84197.0,84196.0,0.0326]
[1744406533924,0.1495142,84197.0,84196.0,0.0326]
[1744406534125,0.1495142,84197.0,84196.0,0.1514156]
[1744406534420,0.1495142,84197.0,84196.0,0.1188156]
[1744406534730,0.1188198,84193.0,84192.0,0.1188212]
[1744406534931,0.1188198,84193.0,84192.0,0.1355656]
[1744406535228,0.1188198,84193.0,84192.0,0.0167444]
[1744406535430,0.1836198,84193.0,84192.0,0.0167444]
[1744406535625,0.1188226,84191.0,84190.0,0.3608]
[1744406535825,0.1188353,84182.0,84181.0,0.00017815]
[1744406536022,0.0323,84190.0,84165.0,0.3608]
[1744406536225,0.118841,84178.0,84177.0,0.3608]
[1744406536628,0.118841,84178.0,84177.0,0.4796424]
[1744406537020,0.1188438,84176.0,84175.0,0.1782664]
[1744406537234,0.0917211,84178.0,84169.0,0.0087758]
[1744406537235,0.1188523,84170.0,84169.0,0.11903045]
[1744406537626,0.1827523,84170.0,84169.0,0.00017815]
[1744406538232,0.1827523,84170.0,84169.0,0.11903185]
[1744406539029,0.1827523,84170.0,84169.0,0.00017815]
[1744406540427,0.1827523,84170.0,84150.0,0.0305]
[1744406540428,0.1188664,84160.0,84150.0,0.0305]
[1744406540729,0.1188664,84160.0,84150.0,0.1493802]
[1744406540929,0.1188664,84160.0,84148.0,0.3608]
[1744406541132,0.0594366,84156.0,84139.0,0.0305]
[1744406541323,0.1188947,84140.0,84139.0,0.1188931]
[1744406542026,0.1188947,84140.0,84139.0,0.1277313]
[1744406542225,0.1844947,84140.0,84139.0,0.1277313]
[1744406542432,0.0656,84140.0,84139.0,0.1871793]
[1744406542929,0.1844947,84140.0,84139.0,0.1871793]
[1744406543429,0.0656,84140.0,84139.0,0.1871793]
[1744406544034,0.00017826,84148.0,84147.0,0.1188848]
[1744406544236,0.00017826,84148.0,84147.0,0.4796848]
[1744406544931,0.11906156,84148.0,84147.0,0.4796848]
[1744406545932,0.03037826,84148.0,84147.0,0.4796848]
[1744406546341,0.03041826,84148.0,84147.0,0.4796848]
[1744406546532,0.14930156,84148.0,84147.0,0.4796848]
[1744406548334,0.00021826,84148.0,84147.0,0.4796848]
[1744406548537,0.00021826,84148.0,84147.0,0.4959848]
[1744406550735,6e-08,84148.0,84147.0,0.4959848]
[1744406550933,5.401e-05,84161.0,84160.0,0.1188664]
[1744406551137,5.401e-05,84161.0,84160.0,0.5290664]
[1744406551339,0.118853,84170.0,84169.0,0.1188537]
[1744406551645,0.118853,84170.0,84169.0,0.4796537]
[1744406551938,0.181853,84170.0,84169.0,0.4796537]
[1744406554243,0.063,84170.0,84169.0,0.4796537]
[1744406554634,0.0327,84170.0,84169.0,0.4796537]
[1744406554841,0.005,84174.0,84173.0,0.118848]
[1744406555031,0.005,84174.0,84173.0,0.479648]
[1744406555237,0.005,84174.0,84173.0,0.528348]
[1744406555436,0.00504,84174.0,84173.0,0.528348]
[1744406557840,0.0314,84184.0,84177.0,0.1188424]
[1744406558040,0.03125401,84187.0,84177.0,0.1188424]
[1744406558242,0.0312,84187.0,84177.0,0.1188424]
[1744406558442,0.00021826,84178.0,84177.0,0.1188424]
[1744406561637,0.00017826,84178.0,84177.0,0.1188424]
[1744406561935,0.00021826,84178.0,84177.0,0.1188424]
[1744406562136,6e-08,84178.0,84177.0,0.4796424]
[1744406562941,6e-08,84178.0,84177.0,0.49606694]
[1744406564646,6e-08,84178.0,84177.0,0.49616168]
[1744406565046,2e-08,84186.0,84185.0,0.1188311]
[1744406565242,0.005,84200.0,84199.0,0.1188113]
[1744406565442,0.53670361,84219.0,84199.0,0.1188113]
[1744406565443,0.02063879,84209.0,84208.0,0.1187986]
[1744406565650,0.00509842,84226.0,84224.0,0.1187761]
[1744406565651,5e-08,84225.0,84224.0,0.1187761]
[1744406565949,5e-08,84226.0,84225.0,0.1187747]
[1744406566245,5e-08,84226.0,84225.0,0.19629398]
[1744406566445,4.005e-05,84226.0,84225.0,0.19629398]
[1744406566842,4.005e-05,84226.0,84225.0,0.1797747]
[1744406568041,5e-08,84230.0,84229.0,0.118769]
[1744406568248,5e-08,84230.0,84227.0,0.0593853]
[1744406568249,0.0322,84231.0,84230.0,0.1187676]
[1744406568843,0.03224,84231.0,84230.0,0.1187676]
[1744406569348,0.00017815,84234.0,84233.0,0.1187634]
[1744406571448,0.032,84248.0,84233.0,0.4795634]
[1744406571642,0.3608,84268.0,84233.0,0.4795634]
[1744406571643,0.3608,84268.0,84246.0,0.4201719]
[1744406571842,0.4201571,84268.0,84264.0,0.1187197]
[1744406572048,0.1187176,84266.0,84264.0,0.1187197]
[1744406572243,0.33624,84265.0,84264.0,0.1187197]
[1744406572449,0.36858,84265.0,84264.0,0.1187197]
[1744406572646,0.11858,84265.0,84264.0,0.1187197]
[1744406572844,0.03234,84265.0,84264.0,0.1187197]
[1744406573253,0.0323,84265.0,84264.0,0.1187197]
[1744406573447,1e-07,84265.0,84264.0,0.1517197]
[1744406573652,0.00017803,84273.0,84272.0,0.1187084]
[1744406574943,0.00021803,84273.0,84272.0,0.1187084]
[1744406575653,3e-08,84273.0,84272.0,0.1187084]
[1744406575842,5.401e-05,84285.0,84284.0,0.1186915]
[1744406576042,7.291e-05,84289.0,84288.0,0.1186859]
[1744406576244,0.033,84303.0,84299.0,0.1186704]
[1744406576444,5.401e-05,84301.0,84299.0,0.1186704]
[1744406576641,0.0316,84302.0,84299.0,0.1186704]
[1744406576845,0.133,84300.0,84299.0,0.1186704]
[1744406577044,0.133,84300.0,84299.0,0.4794704]
[1744406577449,0.13304,84300.0,84299.0,0.4794704]
[1744406577650,0.133,84300.0,84299.0,0.4794704]
[1744406577842,0.13304,84300.0,84299.0,0.4794704]
[1744406579151,0.005,84304.0,84303.0,0.1186648]
[1744406580953,0.005,84304.0,84300.0,0.0910343]
[1744406580954,0.1780016,84303.0,84302.0,0.1186648]
[1744406581158,0.1780016,84303.0,84296.0,0.3608]
[1744406581159,0.0593366,84297.0,84296.0,0.3608]
[1744406581344,0.1186803,84292.0,84287.0,0.0593434]
[1744406581655,0.1186803,84292.0,84291.0,0.11885873]
[1744406581857,0.0634,84296.0,84295.0,0.118676]
[1744406582157,0.0634,84296.0,84295.0,0.479476]
[1744406582350,0.06344,84296.0,84295.0,0.479476]
[1744406582856,0.06344,84296.0,84295.0,0.512576]
[1744406585557,0.06344,84296.0,84295.0,0.479476]
[1744406587353,0.03304,84296.0,84295.0,0.479476]
[1744406587659,0.033,84296.0,84295.0,0.479476]
[1744406587849,0.03304,84296.0,84295.0,0.479476]
[1744406588158,0.03304,84296.0,84295.0,0.56019772]
[1744406590060,0.03304,84296.0,84295.0,0.56080243]
[1744406592064,0.03304,84296.0,84295.0,0.56099179]
[1744406593458,0.03304,84296.0,84295.0,0.57359651]
[1744406594566,0.03304,84296.0,84295.0,0.57372862]
[1744406595652,0.1517146,84296.0,84295.0,0.54172862]
[1744406595958,0.1517146,84296.0,84295.0,0.49720944]
[1744406596162,0.1517146,84296.0,84295.0,0.13640944]
[1744406596356,0.1517146,84296.0,84295.0,0.118676]
[1744406596550,0.1517146,84296.0,84295.0,0.13549347]
[1744406598159,0.03304,84296.0,84295.0,0.13549347]
[1744406598559,0.1517146,84296.0,84295.0,0.13549347]
[1744406598770,0.1849146,84296.0,84295.0,0.13549347]
[1744406598962,0.06624,84296.0,84295.0,0.13549347]
[1744406601064,0.06624,84296.0,84295.0,0.118676]
[1744406602160,0.06624,84296.0,84295.0,0.13455456]
[1744406602767,0.06624,84296.0,84295.0,0.13457086]
[1744406604270,0.06624,84296.0,84295.0,0.13463063]
[1744406604867,0.06624,84296.0,84295.0,0.16493063]
[1744406607773,0.06624,84296.0,84295.0,0.16494427]
[1744406608270,0.06624,84296.0,84295.0,0.13464427]
[1744406609372,0.06624,84296.0,84295.0,0.16634427]
[1744406611462,0.06624,84296.0,84295.0,0.16623175]
[1744406611671,4e-05,84296.0,84295.0,0.16623175]
[1744406611964,1e-07,84304.0,84303.0,0.1186648]
[1744406612172,1e-07,84304.0,84303.0,0.50798313]
[1744406612670,1e-07,84304.0,84303.0,0.57058313]
[1744406612871,4.01e-05,84304.0,84303.0,0.57058313]
[1744406613066,0.00017548,84308.0,84307.0,0.1186591]
[1744406613365,0.00017548,84308.0,84307.0,0.13500006]
[1744406614368,0.11883318,84308.0,84307.0,0.13500006]
[1744406614764,0.47963318,84308.0,84307.0,0.13500006]
[1744406614958,0.11883318,84308.0,84307.0,0.13500006]
[1744406615460,0.14993318,84308.0,84307.0,0.13500006]
[1744406617464,0.18163318,84308.0,84307.0,0.13500006]
[1744406617762,0.18163318,84308.0,84307.0,0.13477312]
[1744406618362,0.18163318,84308.0,84307.0,0.14357741]
[1744406619674,0.18163318,84308.0,84307.0,0.01611402]
[1744406619675,0.43163318,84308.0,84307.0,0.01611402]
[1744406620859,0.1186605,84306.0,84305.0,0.1186619]
[1744406621070,0.1186605,84306.0,84305.0,0.13485031]
[1744406621276,0.4331605,84306.0,84305.0,0.13485031]
[1744406621575,0.1831605,84306.0,84305.0,0.13485031]
[1744406621776,0.5439605,84306.0,84305.0,0.13485031]
[1744406622476,0.5439605,84306.0,84305.0,0.01618841]
[1744406622975,0.1186746,84296.0,84288.0,0.3524025]
[1744406623169,0.0593394,84294.0,84288.0,0.3524025]
[1744406623366,0.1186831,84290.0,84288.0,0.3524025]
[1744406623571,0.1186845,84289.0,84288.0,0.3524025]
[1744406623773,0.4794845,84289.0,84288.0,0.3524025]
[1744406623973,0.1186943,84282.0,84264.0,0.5587234]
[1744406624182,0.4794943,84282.0,84271.0,0.008904]
[1744406624376,0.7294943,84282.0,84281.0,0.37628116]
[1744406624681,0.1186986,84279.0,84278.0,0.35252462]
[1744406625066,0.3686986,84279.0,84278.0,0.35252462]
[1744406625272,0.4340986,84279.0,84278.0,0.35252462]
[1744406625669,0.8526986,84279.0,84278.0,0.21698432]
[1744406625871,0.8526986,84279.0,84278.0,0.12538232]
[1744406626075,0.8526986,84279.0,84278.0,2e-08]
[1744406626378,0.8526986,84279.0,84271.0,0.37628116]
[1744406626379,0.1187084,84272.0,84271.0,0.1524278]
[1744406626575,0.1187169,84266.0,84265.0,0.41773827]
[1744406626771,0.4795169,84266.0,84265.0,0.41773827]
[1744406627076,0.7295169,84266.0,84265.0,0.15503347]
[1744406627378,0.7295169,84266.0,84265.0,7e-08]
[1744406628278,0.1187281,84258.0,84257.0,1e-07]
[1744406628475,0.8242481,84258.0,84257.0,1e-07]
[1744406629077,0.5742481,84258.0,84257.0,1e-07]
[1744406629373,0.6394481,84258.0,84257.0,1e-07]